[Event "*** Titled Tuesday Blitz"]
[Site "Chess.com"]
[Date "2020.04.07"]
[Round "1"]
[White "igorkovalenko"]
[Black "Girkassa"]
[Result "1-0"]
[WhiteElo "2900"]
[BlackElo "2420"]
[TimeControl "180+1"]
[EndTime "13:05:49 PDT"]
[Termination "igorkovalenko won by resignation"]

1. d4 {[%clk 0:03:00.9]} 1... d5 {[%clk 0:02:59.7]} 2. c4 {[%clk 0:03:00.1]}
2... e6 {[%clk 0:03:00.3]} 3. Nc3 {[%clk 0:02:59.7]} 3... Bb4 {[%clk 0:03:00.2]}
4. Nf3 {[%clk 0:02:58.4]} 4... Nf6 {[%clk 0:02:59.6]} 5. cxd5 {[%clk 0:02:58.1]}
5... exd5 {[%clk 0:02:59.3]} 6. Bg5 {[%clk 0:02:58.2]} 6... Qd6 {[%clk
0:02:59.5]} 7. e3 {[%clk 0:02:58]} 7... h6 {[%clk 0:02:58.3]} 8. Bh4 {[%clk
0:02:56.5]} 8... Ne4 {[%clk 0:02:56.4]} 9. Rc1 {[%clk 0:02:54.7]} 9... O-O
{[%clk 0:02:53.6]} 10. Bd3 {[%clk 0:02:53.2]} 10... Bf5 {[%clk 0:02:51.4]} 11.
O-O {[%clk 0:02:52.6]} 11... Nd7 {[%clk 0:02:47.4]} 12. Bxe4 {[%clk 0:02:48.7]}
12... dxe4 {[%clk 0:02:43.2]} 13. Bg3 {[%clk 0:02:48.4]} 13... Qf6 {[%clk
0:02:21.2]} 14. Nd2 {[%clk 0:02:46.4]} 14... Bxc3 {[%clk 0:02:21.3]} 15. bxc3
{[%clk 0:02:43.1]} 15... c6 {[%clk 0:02:21.6]} 16. c4 {[%clk 0:02:42.8]} 16...
Qg6 {[%clk 0:02:15.9]} 17. a4 {[%clk 0:02:42.3]} 17... Nf6 {[%clk 0:02:10.2]}
18. Qb3 {[%clk 0:02:41.7]} 18... b6 {[%clk 0:02:06.5]} 19. a5 {[%clk 0:02:41.8]}
19... bxa5 {[%clk 0:02:05.1]} 20. Qa4 {[%clk 0:02:42]} 20... Nh5 {[%clk
0:01:55.6]} 21. Qxa5 {[%clk 0:02:38.9]} 21... Nxg3 {[%clk 0:01:54.1]} 22. hxg3
{[%clk 0:02:39.8]} 22... Rfe8 {[%clk 0:01:49.8]} 23. Nb3 {[%clk 0:02:36.3]}
23... h5 {[%clk 0:01:43.7]} 24. Nc5 {[%clk 0:02:31]} 24... Qh6 {[%clk
0:01:42.9]} 25. Qc7 {[%clk 0:02:28.9]} 25... Qf6 {[%clk 0:01:17]} 26. Ra1 {[%clk
0:02:26.4]} 26... Re7 {[%clk 0:01:16.5]} 27. Qa5 {[%clk 0:02:20.1]} 27... h4
{[%clk 0:01:13.6]} 28. Qd2 {[%clk 0:02:12.5]} 28... hxg3 {[%clk 0:01:10.7]} 29.
fxg3 {[%clk 0:02:12.5]} 29... Qg5 {[%clk 0:01:11.3]} 30. Qf2 {[%clk 0:02:12.2]}
30... Bg6 {[%clk 0:01:09.6]} 31. Qf4 {[%clk 0:02:11.9]} 31... Qh5 {[%clk
0:01:08]} 32. g4 {[%clk 0:02:11.1]} 32... Qh4 {[%clk 0:01:06.3]} 33. Ra6 {[%clk
0:02:10.3]} 33... Ree8 {[%clk 0:00:54.3]} 34. Nd7 {[%clk 0:02:04]} 34... f6
{[%clk 0:00:44.5]} 35. Rxc6 {[%clk 0:02:01.4]} 35... a5 {[%clk 0:00:43]} 36. g5
{[%clk 0:01:56.1]} 36... Qh5 {[%clk 0:00:41.6]} 37. gxf6 {[%clk 0:01:55.8]}
37... Bf7 {[%clk 0:00:37.8]} 38. fxg7 {[%clk 0:01:53.3]} 38... Kxg7 {[%clk
0:00:38.1]} 39. Qg3+ {[%clk 0:01:45.3]} 39... Bg6 {[%clk 0:00:34.7]} 40. Nf6
{[%clk 0:01:45.4]} 1-0

[Event "*** Titled Tuesday Blitz"]
[Site "Chess.com"]
[Date "2020.04.07"]
[Round "1"]
[White "Gabix_94"]
[Black "SCIM"]
[Result "1/2-1/2"]
[WhiteElo "2884"]
[BlackElo "2468"]
[TimeControl "180+1"]
[EndTime "13:05:50 PDT"]
[Termination "Game drawn by repetition"]

1. d4 {[%clk 0:02:59.7]} 1... Nf6 {[%clk 0:02:59.3]} 2. c4 {[%clk 0:02:59.2]}
2... g6 {[%clk 0:02:59.3]} 3. Nc3 {[%clk 0:02:59]} 3... d5 {[%clk 0:02:59.4]} 4.
cxd5 {[%clk 0:02:59.9]} 4... Nxd5 {[%clk 0:02:59.1]} 5. e4 {[%clk 0:03:00.6]}
5... Nxc3 {[%clk 0:02:59.6]} 6. bxc3 {[%clk 0:03:01.5]} 6... Bg7 {[%clk
0:02:59.9]} 7. Bc4 {[%clk 0:03:01.6]} 7... c5 {[%clk 0:02:58.5]} 8. Ne2 {[%clk
0:03:01.8]} 8... Nc6 {[%clk 0:02:57]} 9. Be3 {[%clk 0:03:01.9]} 9... O-O {[%clk
0:02:57.6]} 10. h4 {[%clk 0:03:02.1]} 10... cxd4 {[%clk 0:02:56.1]} 11. cxd4
{[%clk 0:03:03]} 11... Qa5+ {[%clk 0:02:56.3]} 12. Kf1 {[%clk 0:03:03.4]} 12...
Qa3 {[%clk 0:02:56.8]} 13. h5 {[%clk 0:02:59.4]} 13... Bg4 {[%clk 0:02:51.5]}
14. hxg6 {[%clk 0:02:56.1]} 14... hxg6 {[%clk 0:02:52.4]} 15. Bb3 {[%clk
0:02:31.2]} 15... Bxe2+ {[%clk 0:02:36.3]} 16. Qxe2 {[%clk 0:02:27.4]} 16...
Nxd4 {[%clk 0:02:23]} 17. Bxd4 {[%clk 0:02:22]} 17... Bxd4 {[%clk 0:02:22.3]}
18. Rd1 {[%clk 0:02:22.6]} 18... Bg7 {[%clk 0:02:16.5]} 19. Rh3 {[%clk
0:02:15.8]} 19... Qa6 {[%clk 0:02:07.5]} 20. Qxa6 {[%clk 0:02:08.5]} 20... bxa6
{[%clk 0:02:08.4]} 21. Rd7 {[%clk 0:02:09]} 21... e6 {[%clk 0:01:57.4]} 22. Rhd3
{[%clk 0:02:09]} 22... a5 {[%clk 0:01:46]} 23. g3 {[%clk 0:02:03.3]} 23... Bf6
{[%clk 0:01:35.7]} 24. f4 {[%clk 0:02:00.1]} 24... Rfd8 {[%clk 0:01:31.8]} 25.
e5 {[%clk 0:01:54.2]} 25... Be7 {[%clk 0:01:29.2]} 26. Ke2 {[%clk 0:01:50.4]}
26... Rxd7 {[%clk 0:01:24.4]} 27. Rxd7 {[%clk 0:01:49]} 27... Kf8 {[%clk
0:01:25]} 28. Kf3 {[%clk 0:01:45]} 28... Bc5 {[%clk 0:01:21.4]} 29. g4 {[%clk
0:01:42]} 29... Bb6 {[%clk 0:01:11.2]} 30. f5 {[%clk 0:01:39.4]} 30... gxf5
{[%clk 0:01:09]} 31. gxf5 {[%clk 0:01:40.3]} 31... Rd8 {[%clk 0:01:08.5]} 32.
fxe6 {[%clk 0:01:31]} 32... fxe6 {[%clk 0:01:05.7]} 33. Rh7 {[%clk 0:01:22.8]}
33... Rd3+ {[%clk 0:00:55.5]} 34. Kg4 {[%clk 0:01:19.9]} 34... Rd4+ {[%clk
0:00:41]} 35. Kf3 {[%clk 0:01:18.9]} 35... Rd3+ {[%clk 0:00:40.6]} 36. Kg4
{[%clk 0:01:09.4]} 36... Rd4+ {[%clk 0:00:40.5]} 37. Kf3 {[%clk 0:01:06.4]}
37... Rd3+ {[%clk 0:00:39.4]} 1/2-1/2

[Event "*** Titled Tuesday Blitz"]
[Site "Chess.com"]
[Date "2020.04.07"]
[Round "1"]
[White "Sibelephant"]
[Black "dopolian"]
[Result "1-0"]
[WhiteElo "3152"]
[BlackElo "2500"]
[TimeControl "180+1"]
[EndTime "13:05:51 PDT"]
[Termination "Sibelephant won by checkmate"]

1. d4 {[%clk 0:02:59.1]} 1... Nf6 {[%clk 0:02:59.6]} 2. Nf3 {[%clk 0:02:58.5]}
2... e6 {[%clk 0:02:58.8]} 3. Bg5 {[%clk 0:02:57.6]} 3... d5 {[%clk 0:02:58.3]}
4. e3 {[%clk 0:02:56.4]} 4... Be7 {[%clk 0:02:58.1]} 5. Nbd2 {[%clk 0:02:55.8]}
5... O-O {[%clk 0:02:57.4]} 6. Bd3 {[%clk 0:02:55.8]} 6... Nbd7 {[%clk
0:02:53.5]} 7. O-O {[%clk 0:02:54.9]} 7... c5 {[%clk 0:02:52.5]} 8. c3 {[%clk
0:02:53.7]} 8... Qc7 {[%clk 0:02:49.1]} 9. Qe2 {[%clk 0:02:48.3]} 9... e5 {[%clk
0:02:40.5]} 10. e4 {[%clk 0:02:38.9]} 10... dxe4 {[%clk 0:01:51.5]} 11. Nxe4
{[%clk 0:02:38.6]} 11... exd4 {[%clk 0:01:39.7]} 12. cxd4 {[%clk 0:02:37.6]}
12... cxd4 {[%clk 0:01:35.7]} 13. Nxd4 {[%clk 0:02:26.2]} 13... Re8 {[%clk
0:01:28]} 14. Nf5 {[%clk 0:02:18.8]} 14... Qe5 {[%clk 0:00:59.9]} 15. Rae1
{[%clk 0:01:57.1]} 15... Kf8 {[%clk 0:00:23.5]} 16. Qf3 {[%clk 0:01:51.7]} 16...
Nd5 {[%clk 0:00:10.2]} 17. Bxe7+ {[%clk 0:01:47.6]} 17... Nxe7 {[%clk
0:00:09.5]} 18. Ng5 {[%clk 0:01:42.4]} 18... Qc5 {[%clk 0:00:03.8]} 19. Nxg7
{[%clk 0:01:28.4]} 19... Kxg7 {[%clk 0:00:03.4]} 20. Qxf7+ {[%clk 0:01:28.2]}
20... Kh6 {[%clk 0:00:03.8]} 21. Ne6 {[%clk 0:01:19]} 21... Qh5 {[%clk
0:00:02.2]} 22. Qg7# {[%clk 0:01:18.4]} 1-0

[Event "*** Titled Tuesday Blitz"]
[Site "Chess.com"]
[Date "2020.04.07"]
[Round "1"]
[White "GGX0X0"]
[Black "Zavgorodniy_Serg"]
[Result "0-1"]
[WhiteElo "2331"]
[BlackElo "2663"]
[TimeControl "180+1"]
[EndTime "13:05:53 PDT"]
[Termination "Zavgorodniy_Serg won by resignation"]

1. d4 {[%clk 0:03:00.9]} 1... Nf6 {[%clk 0:02:59.4]} 2. c4 {[%clk 0:03:00.6]}
2... e6 {[%clk 0:02:58.8]} 3. Nf3 {[%clk 0:02:59.2]} 3... Bb4+ {[%clk
0:02:58.6]} 4. Bd2 {[%clk 0:02:58.6]} 4... Qe7 {[%clk 0:02:57.6]} 5. a3 {[%clk
0:02:56.8]} 5... Bxd2+ {[%clk 0:02:56.6]} 6. Nbxd2 {[%clk 0:02:56.4]} 6... d6
{[%clk 0:02:56.3]} 7. e3 {[%clk 0:02:55.1]} 7... b6 {[%clk 0:02:55.8]} 8. Bd3
{[%clk 0:02:54.5]} 8... Bb7 {[%clk 0:02:56]} 9. O-O {[%clk 0:02:53.8]} 9... Nbd7
{[%clk 0:02:56.1]} 10. Qc2 {[%clk 0:02:52.8]} 10... O-O {[%clk 0:02:55.4]} 11.
b4 {[%clk 0:02:51.8]} 11... e5 {[%clk 0:02:52.3]} 12. d5 {[%clk 0:02:49.8]}
12... Rfe8 {[%clk 0:02:49.5]} 13. Bf5 {[%clk 0:02:38.8]} 13... g6 {[%clk
0:02:43.9]} 14. Bxd7 {[%clk 0:02:38.2]} 14... Nxd7 {[%clk 0:02:44.8]} 15. e4
{[%clk 0:02:33.6]} 15... Rf8 {[%clk 0:02:43]} 16. Rac1 {[%clk 0:02:24.1]} 16...
a5 {[%clk 0:02:35.3]} 17. Qc3 {[%clk 0:02:20]} 17... f5 {[%clk 0:02:30]} 18. Rb1
{[%clk 0:02:12.9]} 18... h6 {[%clk 0:02:04.4]} 19. exf5 {[%clk 0:02:04.8]} 19...
Rxf5 {[%clk 0:02:02.3]} 20. Qe3 {[%clk 0:01:54.7]} 20... Qg7 {[%clk 0:01:45.5]}
21. Nb3 {[%clk 0:01:31.3]} 21... a4 {[%clk 0:01:39.1]} 22. Nbd2 {[%clk 0:01:31]}
22... b5 {[%clk 0:01:38.2]} 23. cxb5 {[%clk 0:01:12.6]} 23... Nb6 {[%clk
0:01:37.6]} 24. Nh4 {[%clk 0:01:09.4]} 24... Rf4 {[%clk 0:01:23.5]} 25. g3
{[%clk 0:01:07.7]} 25... Nxd5 {[%clk 0:01:19.2]} 26. Qe2 {[%clk 0:01:03.6]}
26... Rxh4 {[%clk 0:01:14.2]} 27. gxh4 {[%clk 0:01:01.3]} 27... Nf4 {[%clk
0:01:12.3]} 28. Qg4 {[%clk 0:01:01.2]} 28... h5 {[%clk 0:01:07.4]} 0-1

[Event "*** Titled Tuesday Blitz"]
[Site "Chess.com"]
[Date "2020.04.07"]
[Round "1"]
[White "kingmonkey2006"]
[Black "tandaleo"]
[Result "0-1"]
[WhiteElo "2629"]
[BlackElo "2330"]
[TimeControl "180+1"]
[EndTime "13:05:54 PDT"]
[Termination "tandaleo won by checkmate"]

1. d4 {[%clk 0:03:00.5]} 1... d5 {[%clk 0:02:59]} 2. Nf3 {[%clk 0:03:01.4]} 2...
Nf6 {[%clk 0:02:59.1]} 3. Bf4 {[%clk 0:03:01.7]} 3... e6 {[%clk 0:02:59.4]} 4.
e3 {[%clk 0:03:01.8]} 4... Bd6 {[%clk 0:02:59.7]} 5. Bg3 {[%clk 0:03:01.8]} 5...
O-O {[%clk 0:02:58.6]} 6. Nbd2 {[%clk 0:03:02.1]} 6... b6 {[%clk 0:02:58.7]} 7.
c3 {[%clk 0:03:01.3]} 7... Bb7 {[%clk 0:02:58]} 8. Bd3 {[%clk 0:03:01.5]} 8...
Ne4 {[%clk 0:02:58.3]} 9. Qc2 {[%clk 0:02:56.6]} 9... f5 {[%clk 0:02:58.4]} 10.
Be5 {[%clk 0:02:54]} 10... Nd7 {[%clk 0:02:55.7]} 11. Bxd6 {[%clk 0:02:50.4]}
11... cxd6 {[%clk 0:02:56.6]} 12. O-O {[%clk 0:02:51.1]} 12... Rc8 {[%clk
0:02:49.4]} 13. a4 {[%clk 0:02:49.6]} 13... a6 {[%clk 0:02:47]} 14. Rfd1 {[%clk
0:02:44.7]} 14... Ndf6 {[%clk 0:02:44.9]} 15. Qb3 {[%clk 0:02:43.9]} 15... Ng4
{[%clk 0:02:38.8]} 16. Rf1 {[%clk 0:02:37.8]} 16... Kh8 {[%clk 0:02:01.5]} 17.
h3 {[%clk 0:02:37.4]} 17... Ngf6 {[%clk 0:01:59.3]} 18. c4 {[%clk 0:02:20.5]}
18... Nxd2 {[%clk 0:01:30.5]} 19. Nxd2 {[%clk 0:02:20.6]} 19... dxc4 {[%clk
0:01:30.7]} 20. Nxc4 {[%clk 0:02:16.6]} 20... Nd5 {[%clk 0:01:30.9]} 21. Qa3
{[%clk 0:02:03]} 21... Qg5 {[%clk 0:01:25.3]} 22. g3 {[%clk 0:01:49.2]} 22... f4
{[%clk 0:01:16.7]} 23. exf4 {[%clk 0:01:26.9]} 23... Nxf4 {[%clk 0:01:17.6]} 24.
Kh2 {[%clk 0:01:09.9]} 24... Nxh3 {[%clk 0:01:02.7]} 25. Nxd6 {[%clk 0:01:05.6]}
25... Nxf2 {[%clk 0:00:41.6]} 26. Nxb7 {[%clk 0:00:49.1]} 26... Qh5+ {[%clk
0:00:38.8]} 27. Kg1 {[%clk 0:00:46.8]} 27... Qh1# {[%clk 0:00:38.7]} 0-1

[Event "*** Titled Tuesday Blitz"]
[Site "Chess.com"]
[Date "2020.04.07"]
[Round "1"]
[White "Ali_rastbod"]
[Black "GodDMuhammad"]
[Result "0-1"]
[WhiteElo "2625"]
[BlackElo "2325"]
[TimeControl "180+1"]
[EndTime "13:06:00 PDT"]
[Termination "GodDMuhammad won by resignation"]

1. c4 {[%clk 0:03:00.2]} 1... Nf6 {[%clk 0:02:59.4]} 2. Nc3 {[%clk 0:02:53.8]}
2... e6 {[%clk 0:02:49.3]} 3. e4 {[%clk 0:02:53.3]} 3... d5 {[%clk 0:02:30.6]}
4. e5 {[%clk 0:02:47.9]} 4... d4 {[%clk 0:02:30.3]} 5. exf6 {[%clk 0:02:47.7]}
5... dxc3 {[%clk 0:02:30.2]} 6. bxc3 {[%clk 0:02:48.6]} 6... gxf6 {[%clk
0:02:24]} 7. d4 {[%clk 0:02:49.5]} 7... c5 {[%clk 0:02:22.2]} 8. Nf3 {[%clk
0:02:50]} 8... Nc6 {[%clk 0:02:18.6]} 9. d5 {[%clk 0:02:35.4]} 9... Ne5 {[%clk
0:02:14.1]} 10. Nxe5 {[%clk 0:02:34]} 10... fxe5 {[%clk 0:02:13.8]} 11. Qh5
{[%clk 0:02:28.4]} 11... Qf6 {[%clk 0:02:06.5]} 12. Bd3 {[%clk 0:02:20.8]} 12...
e4 {[%clk 0:01:57.1]} 13. O-O {[%clk 0:01:38.6]} 13... exd3 {[%clk 0:01:53.3]}
14. Re1 {[%clk 0:01:37.5]} 14... Qxc3 {[%clk 0:01:17.8]} 15. Bg5 {[%clk
0:01:35.7]} 15... d2 {[%clk 0:01:16.9]} 16. Red1 {[%clk 0:01:34.9]} 16... Bg7
{[%clk 0:01:11.7]} 17. Bxd2 {[%clk 0:01:32.6]} 17... Qxc4 {[%clk 0:01:10.6]} 18.
dxe6 {[%clk 0:01:32.1]} 18... Bxe6 {[%clk 0:01:07.8]} 19. Rac1 {[%clk
0:01:32.1]} 19... Qd5 {[%clk 0:00:48.8]} 20. Bg5 {[%clk 0:01:31.4]} 20... Qf5
{[%clk 0:00:42.6]} 21. Qh4 {[%clk 0:01:24.1]} 21... O-O {[%clk 0:00:36.9]} 22.
Be7 {[%clk 0:01:21]} 22... Rfc8 {[%clk 0:00:33.3]} 23. h3 {[%clk 0:01:19.5]}
23... c4 {[%clk 0:00:32.9]} 24. Bb4 {[%clk 0:01:13.2]} 24... c3 {[%clk
0:00:28.5]} 25. Rd4 {[%clk 0:01:13.3]} 25... Bxd4 {[%clk 0:00:25.8]} 26. Qxd4
{[%clk 0:01:14.2]} 26... Rc4 {[%clk 0:00:23.6]} 27. Qd6 {[%clk 0:01:11.2]} 27...
Qf4 {[%clk 0:00:20.5]} 0-1

[Event "*** Titled Tuesday Blitz"]
[Site "Chess.com"]
[Date "2020.04.07"]
[Round "1"]
[White "medalja"]
[Black "fireheart92"]
[Result "0-1"]
[WhiteElo "2458"]
[BlackElo "2876"]
[TimeControl "180+1"]
[EndTime "13:06:01 PDT"]
[Termination "fireheart92 won by resignation"]

1. d4 {[%clk 0:02:09.3]} 1... d5 {[%clk 0:02:58.9]} 2. c4 {[%clk 0:02:09.8]}
2... dxc4 {[%clk 0:02:59.8]} 3. Nf3 {[%clk 0:02:10.5]} 3... Nf6 {[%clk
0:02:59.4]} 4. e3 {[%clk 0:02:11]} 4... Bg4 {[%clk 0:02:59.4]} 5. Bxc4 {[%clk
0:02:11.5]} 5... e6 {[%clk 0:02:59.6]} 6. O-O {[%clk 0:02:11.6]} 6... Be7 {[%clk
0:02:59.8]} 7. Nc3 {[%clk 0:02:12.2]} 7... O-O {[%clk 0:02:59.4]} 8. h3 {[%clk
0:02:12.8]} 8... Bh5 {[%clk 0:02:59.2]} 9. Qe2 {[%clk 0:02:13.3]} 9... c5 {[%clk
0:02:59]} 10. Rd1 {[%clk 0:02:12.6]} 10... cxd4 {[%clk 0:02:53.3]} 11. exd4
{[%clk 0:02:08.1]} 11... Nd5 {[%clk 0:02:52.4]} 12. Ne4 {[%clk 0:02:00.6]} 12...
Nc6 {[%clk 0:02:51.7]} 13. Ng3 {[%clk 0:02:00.4]} 13... Bg6 {[%clk 0:02:51.1]}
14. Ne5 {[%clk 0:01:58.7]} 14... Rc8 {[%clk 0:02:46.1]} 15. a3 {[%clk
0:01:50.5]} 15... Bf6 {[%clk 0:02:40.3]} 16. Nxg6 {[%clk 0:01:16.2]} 16... hxg6
{[%clk 0:02:40]} 17. Be3 {[%clk 0:01:17.1]} 17... Nxe3 {[%clk 0:02:33]} 18. fxe3
{[%clk 0:01:18]} 18... Bg5 {[%clk 0:02:29.1]} 19. Ne4 {[%clk 0:01:16.7]} 19...
Bh6 {[%clk 0:02:29]} 20. Nc5 {[%clk 0:01:14]} 20... Qe7 {[%clk 0:02:11.5]} 21.
Qf3 {[%clk 0:00:59.6]} 21... b6 {[%clk 0:02:06.1]} 22. Ne4 {[%clk 0:00:58.3]}
22... Rfd8 {[%clk 0:02:02.9]} 23. Ba2 {[%clk 0:00:58.3]} 23... Kh7 {[%clk
0:01:59]} 24. Kh1 {[%clk 0:00:58.6]} 24... f5 {[%clk 0:01:51.9]} 25. Nc3 {[%clk
0:00:46]} 25... e5 {[%clk 0:01:50.1]} 26. d5 {[%clk 0:00:45.7]} 26... e4 {[%clk
0:01:48.8]} 27. Qe2 {[%clk 0:00:44.7]} 27... Ne5 {[%clk 0:01:48.6]} 28. Nb5
{[%clk 0:00:40.9]} 28... Nd3 {[%clk 0:01:38.9]} 29. Nc3 {[%clk 0:00:27.3]} 29...
Qg5 {[%clk 0:01:34.7]} 30. Rxd3 {[%clk 0:00:24.5]} 30... exd3 {[%clk 0:01:34.5]}
31. Qxd3 {[%clk 0:00:25.4]} 31... Qxe3 {[%clk 0:01:34.8]} 32. Qxe3 {[%clk
0:00:26.3]} 32... Bxe3 {[%clk 0:01:35.7]} 33. Rd1 {[%clk 0:00:26.1]} 33... Bf4
{[%clk 0:01:30.5]} 34. Bb1 {[%clk 0:00:26.2]} 34... Be5 {[%clk 0:01:30.1]} 35.
Nb5 {[%clk 0:00:23.6]} 35... a6 {[%clk 0:01:29.7]} 36. Na7 {[%clk 0:00:23]}
36... Rc7 {[%clk 0:01:29.9]} 37. Nc6 {[%clk 0:00:23.1]} 37... Rxc6 {[%clk
0:01:30.3]} 0-1

[Event "*** Titled Tuesday Blitz"]
[Site "Chess.com"]
[Date "2020.04.07"]
[Round "1"]
[White "Eltaj_Safarli"]
[Black "TomasKapitanchuk"]
[Result "1-0"]
[WhiteElo "3064"]
[BlackElo "2493"]
[TimeControl "180+1"]
[EndTime "13:06:02 PDT"]
[Termination "Eltaj_Safarli won by resignation"]

1. e4 {[%clk 0:03:00.9]} 1... c5 {[%clk 0:03:00.1]} 2. Nc3 {[%clk 0:03:01]} 2...
Nc6 {[%clk 0:03:00]} 3. Bb5 {[%clk 0:03:01.5]} 3... Nd4 {[%clk 0:02:56.4]} 4.
Nf3 {[%clk 0:03:01.2]} 4... e6 {[%clk 0:02:54.7]} 5. O-O {[%clk 0:03:00.1]} 5...
a6 {[%clk 0:02:51.4]} 6. Bd3 {[%clk 0:03:00.1]} 6... Ne7 {[%clk 0:02:50.7]} 7.
Nxd4 {[%clk 0:03:00]} 7... cxd4 {[%clk 0:02:51.6]} 8. Ne2 {[%clk 0:03:00.9]}
8... Nc6 {[%clk 0:02:51.4]} 9. c3 {[%clk 0:03:01.8]} 9... d5 {[%clk 0:02:47.2]}
10. cxd4 {[%clk 0:02:34.5]} 10... dxe4 {[%clk 0:02:43.2]} 11. Bxe4 {[%clk
0:02:35.4]} 11... Nxd4 {[%clk 0:02:41.6]} 12. Qa4+ {[%clk 0:02:32.1]} 12... Nb5
{[%clk 0:02:22.1]} 13. d4 {[%clk 0:02:25.1]} 13... Bd6 {[%clk 0:02:15]} 14. Be3
{[%clk 0:02:16.5]} 14... O-O {[%clk 0:02:13.1]} 15. Qc2 {[%clk 0:02:14.7]} 15...
h6 {[%clk 0:02:08.1]} 16. Rad1 {[%clk 0:02:10.9]} 16... Nc7 {[%clk 0:01:58.8]}
17. Nc3 {[%clk 0:02:07]} 17... Rb8 {[%clk 0:01:50.3]} 18. Qd2 {[%clk 0:02:02.1]}
18... Qf6 {[%clk 0:01:32.8]} 19. Bb1 {[%clk 0:01:55]} 19... Qh4 {[%clk
0:01:14.5]} 20. g3 {[%clk 0:01:52.9]} 20... Qh3 {[%clk 0:01:12.1]} 21. Ne4
{[%clk 0:01:48.8]} 21... Be7 {[%clk 0:01:08.2]} 22. Bf4 {[%clk 0:01:48.7]} 22...
e5 {[%clk 0:00:48.3]} 23. Bxe5 {[%clk 0:01:45.2]} 23... Bg4 {[%clk 0:00:39.2]}
24. f3 {[%clk 0:01:43.9]} 24... Rbc8 {[%clk 0:00:27.9]} 25. fxg4 {[%clk
0:01:41.3]} 25... Qxg4 {[%clk 0:00:28.8]} 26. Qf4 {[%clk 0:01:28.5]} 26... Qd7
{[%clk 0:00:24.6]} 27. Qf5 {[%clk 0:01:27.8]} 27... Qxf5 {[%clk 0:00:20.2]} 28.
Rxf5 {[%clk 0:01:28.7]} 28... Ne6 {[%clk 0:00:19.8]} 29. d5 {[%clk 0:01:27]}
29... Rfd8 {[%clk 0:00:19.7]} 30. d6 {[%clk 0:01:16.8]} 30... Bf8 {[%clk
0:00:20]} 31. Rdf1 {[%clk 0:01:16]} 1-0

[Event "*** Titled Tuesday Blitz"]
[Site "Chess.com"]
[Date "2020.04.07"]
[Round "1"]
[White "Hanging_pointer"]
[Black "champ2005"]
[Result "0-1"]
[WhiteElo "2486"]
[BlackElo "3001"]
[TimeControl "180+1"]
[EndTime "13:06:02 PDT"]
[Termination "champ2005 won by resignation"]

1. d4 {[%clk 0:02:59.2]} 1... Nf6 {[%clk 0:02:58.2]} 2. c4 {[%clk 0:02:58.6]}
2... Nc6 {[%clk 0:02:58.3]} 3. Nf3 {[%clk 0:02:56.9]} 3... e6 {[%clk 0:02:58.5]}
4. Nc3 {[%clk 0:02:56.7]} 4... Bb4 {[%clk 0:02:58]} 5. Qc2 {[%clk 0:02:53.9]}
5... d6 {[%clk 0:02:58.2]} 6. Bg5 {[%clk 0:02:52.8]} 6... h6 {[%clk 0:02:55.1]}
7. Bh4 {[%clk 0:02:52.5]} 7... Bxc3+ {[%clk 0:02:54.8]} 8. bxc3 {[%clk
0:02:47.6]} 8... e5 {[%clk 0:02:52.4]} 9. e3 {[%clk 0:02:45.9]} 9... Qe7 {[%clk
0:02:45.4]} 10. Be2 {[%clk 0:02:45.3]} 10... b6 {[%clk 0:02:32.2]} 11. O-O
{[%clk 0:02:33.8]} 11... Bb7 {[%clk 0:02:31.8]} 12. Rad1 {[%clk 0:02:24.6]}
12... g5 {[%clk 0:02:16.7]} 13. Bg3 {[%clk 0:02:23.5]} 13... Nh5 {[%clk
0:02:09.5]} 14. d5 {[%clk 0:02:18.8]} 14... Nxg3 {[%clk 0:02:05.9]} 15. hxg3
{[%clk 0:02:17.8]} 15... Na5 {[%clk 0:02:06]} 16. Nd2 {[%clk 0:02:13.3]} 16...
Bc8 {[%clk 0:02:03.5]} 17. Bd3 {[%clk 0:02:09.9]} 17... Nb7 {[%clk 0:02:00]} 18.
Bf5 {[%clk 0:02:08]} 18... Bd7 {[%clk 0:01:47.1]} 19. g4 {[%clk 0:02:03.8]}
19... O-O-O {[%clk 0:01:44.4]} 20. Ne4 {[%clk 0:01:56.9]} 20... h5 {[%clk
0:01:41.9]} 21. Bxd7+ {[%clk 0:01:53.8]} 21... Rxd7 {[%clk 0:01:39.7]} 22. gxh5
{[%clk 0:01:40.2]} 22... f5 {[%clk 0:01:37.2]} 23. Ng3 {[%clk 0:01:39.2]} 23...
f4 {[%clk 0:01:37.1]} 24. Nf5 {[%clk 0:01:32.5]} 24... Qh7 {[%clk 0:01:35.8]}
25. g4 {[%clk 0:01:32.8]} 25... fxg3 {[%clk 0:01:24.7]} 26. Kg2 {[%clk
0:01:25.4]} 26... gxf2 {[%clk 0:01:18.1]} 27. Rh1 {[%clk 0:01:25.2]} 27... Rf7
{[%clk 0:01:04.8]} 28. e4 {[%clk 0:01:23.2]} 28... Nc5 {[%clk 0:01:04.9]} 29.
Rdf1 {[%clk 0:01:18.5]} 29... Nxe4 {[%clk 0:01:01.4]} 30. Qxe4 {[%clk
0:01:15.1]} 30... Rxf5 {[%clk 0:01:01.6]} 31. h6 {[%clk 0:01:11.5]} 31... Rf7
{[%clk 0:00:59.3]} 32. Qxh7 {[%clk 0:01:02.4]} 32... Rfxh7 {[%clk 0:01:00.2]}
33. Rxf2 {[%clk 0:00:58.2]} 33... Rxh6 {[%clk 0:00:59.3]} 34. Rxh6 {[%clk
0:00:59.1]} 34... Rxh6 {[%clk 0:01:00.2]} 35. Rf5 {[%clk 0:00:57.7]} 35... Rh4
{[%clk 0:00:59.1]} 36. c5 {[%clk 0:00:54.6]} 36... bxc5 {[%clk 0:01:00]} 0-1

[Event "*** Titled Tuesday Blitz"]
[Site "Chess.com"]
[Date "2020.04.07"]
[Round "1"]
[White "Kiborg95"]
[Black "czasnaszachy"]
[Result "1-0"]
[WhiteElo "2675"]
[BlackElo "2335"]
[TimeControl "180+1"]
[EndTime "13:06:05 PDT"]
[Termination "Kiborg95 won by resignation"]

1. e4 {[%clk 0:03:00.9]} 1... c5 {[%clk 0:02:58.3]} 2. Nc3 {[%clk 0:02:59.9]}
2... Nc6 {[%clk 0:02:57]} 3. Nge2 {[%clk 0:02:58.6]} 3... e6 {[%clk 0:02:44.8]}
4. d4 {[%clk 0:02:56.6]} 4... cxd4 {[%clk 0:02:44.2]} 5. Nxd4 {[%clk 0:02:57.5]}
5... Qc7 {[%clk 0:02:41.7]} 6. Be3 {[%clk 0:02:57.3]} 6... a6 {[%clk 0:02:40.1]}
7. f4 {[%clk 0:02:57.7]} 7... b5 {[%clk 0:02:25.2]} 8. Bd3 {[%clk 0:02:56.4]}
8... Bb7 {[%clk 0:02:21.2]} 9. Nb3 {[%clk 0:02:56.6]} 9... d6 {[%clk 0:02:04.6]}
10. O-O {[%clk 0:02:56.2]} 10... Nf6 {[%clk 0:02:04.5]} 11. Qf3 {[%clk
0:02:56.6]} 11... Be7 {[%clk 0:02:03.8]} 12. Qh3 {[%clk 0:02:56.4]} 12... Nb4
{[%clk 0:01:58.1]} 13. Nd4 {[%clk 0:02:50.5]} 13... Nxd3 {[%clk 0:01:57]} 14.
cxd3 {[%clk 0:02:51.4]} 14... O-O {[%clk 0:01:33.9]} 15. a3 {[%clk 0:02:48.3]}
15... d5 {[%clk 0:01:23.8]} 16. e5 {[%clk 0:02:43.7]} 16... Nd7 {[%clk
0:01:20.6]} 17. Rf3 {[%clk 0:02:28.4]} 17... Qd8 {[%clk 0:01:05]} 18. Qh5 {[%clk
0:02:13.1]} 18... g6 {[%clk 0:00:54.1]} 19. Qh6 {[%clk 0:02:08.3]} 19... Re8
{[%clk 0:00:53]} 20. Rh3 {[%clk 0:02:08.3]} 20... Nf8 {[%clk 0:00:53]} 21. Rf1
{[%clk 0:01:58.4]} 21... Rc8 {[%clk 0:00:30]} 22. Nce2 {[%clk 0:01:41.1]} 22...
Rc7 {[%clk 0:00:16.3]} 23. g4 {[%clk 0:01:15.1]} 23... Bc8 {[%clk 0:00:16]} 24.
f5 {[%clk 0:01:07.4]} 24... exf5 {[%clk 0:00:14.2]} 25. gxf5 {[%clk 0:01:07.8]}
25... Bc5 {[%clk 0:00:11.4]} 26. f6 {[%clk 0:01:04.8]} 1-0